fUST/lending_fUST_20240906
["ID","MTS","AMOUNT","RATE_DAILY","PERIOD"]
[337365800,1725631865353,-514.93088172,0.00019726,2]
[337365801,1725631865363,-500.0,0.00019726,2]
[337365802,1725631865372,-953.31,0.00019726,2]
[337365803,1725631865381,-470.1246147,0.00019726,2]
[337365804,1725631865391,-500.0,0.00019726,2]
[337365805,1725631865400,-500.0,0.00019726,2]
[337365806,1725631865409,-500.0,0.00019726,2]
[337365807,1725631865418,-500.0,0.00019726,2]
[337365808,1725631865428,-1004.18,0.00019726,2]
[337365809,1725631865437,-500.0,0.00019726,2]
[337365810,1725631865447,-500.0,0.00019726,2]
[337365811,1725631865456,-500.0,0.00019726,2]
[337365812,1725631865466,-500.0,0.00019726,2]
[337365813,1725631865475,-500.0,0.00019726,2]
[337365814,1725631865485,-500.0,0.00019726,2]
[337365815,1725631865495,-500.0,0.00019726,2]
[337365816,1725631865504,-500.0,0.00019726,2]
[337365817,1725631865514,-500.0,0.00019726,2]
[337365818,1725631865526,-609.29,0.00019726,2]
[337365819,1725631865535,-1073.16,0.00019726,2]
[337365820,1725631865545,-500.0,0.00019726,2]
[337365821,1725631865563,-500.0,0.00019726,2]
[337365822,1725631865573,-500.0,0.00019726,2]
[337365823,1725631865583,-500.0,0.00019726,2]
[337365824,1725631865592,-500.0,0.00019726,2]
[337365825,1725631865602,-500.0,0.00019726,2]
[337365826,1725631865611,-516.36551619,0.00019726,2]
[337365827,1725631865621,-500.0,0.00019726,2]
[337365828,1725631865631,-984.52,0.00019726,2]
[337365829,1725631865640,-557.06896443,0.00019726,2]
[337365830,1725631865651,-500.0,0.00019726,2]
[337365831,1725631865663,-500.0,0.00019726,2]
[337365832,1725631865672,-500.0,0.00019726,2]
[337365833,1725631865683,-802.18,0.00019726,2]
[337365834,1725631865694,-500.0,0.00019726,2]
[337365835,1725631865705,-502.79,0.00019726,2]
[337365836,1725631865715,-500.0,0.00019726,2]
[337365837,1725631865726,-500.0,0.00019726,2]
[337365838,1725631865736,-514.25015873,0.00019726,2]
[337365839,1725631865745,-672.02,0.00019726,2]
[337365840,1725631865756,-1736.67,0.00019726,2]
[337365841,1725631865766,-500.0,0.00019726,2]
[337365842,1725631865777,-2241.58,0.00019726,2]
[337365843,1725631865789,-500.0,0.00019726,2]
[337365844,1725631865800,-500.0,0.00019726,2]
[337365845,1725631865818,-500.0,0.00019726,2]
[337365846,1725631865827,-500.0,0.00019726,2]
[337365847,1725631865837,-500.0,0.00019726,2]
[337365848,1725631865847,-709.85,0.00019726,2]
[337365849,1725631865856,-929.24,0.00019726,2]
[337365850,1725631865866,-500.0,0.00019726,2]
[337365851,1725631865875,-789.68,0.00019726,2]
[337365852,1725631865886,-564.3,0.00019726,2]
[337365853,1725631865895,-500.0,0.00019726,2]
[337365854,1725631865904,-500.0,0.00019726,2]
[337365855,1725631865913,-2150.56,0.00019726,2]
[337365856,1725631865922,-500.0,0.00019726,2]
[337365857,1725631865931,-500.0,0.00019726,2]
[337365858,1725631865941,-501.99600001,0.00019726,2]
[337365859,1725631865950,-500.0,0.00019726,2]
[337365860,1725631865959,-774.77,0.00019726,2]
[337365861,1725631865968,-500.0,0.00019726,2]
[337365862,1725631865978,-500.0,0.00019726,2]
[337365863,1725631865987,-500.0,0.00019726,2]
[337365864,1725631865996,-552.22032543,0.00019726,2]
[337365865,1725631866005,-500.0,0.00019726,2]
[337365866,1725631866014,-1717.67,0.00019726,2]
[337365867,1725631866023,-537.94,0.00019726,2]
[337365868,1725631866032,-500.0,0.00019726,2]
[337365869,1725631866041,-500.0,0.00019726,2]
[337365870,1725631866058,-500.0,0.00019726,2]
[337365871,1725631866067,-500.0,0.00019726,2]
[337365872,1725631866076,-501.02,0.00019726,2]
[337365873,1725631866085,-500.0,0.00019726,2]
[337365874,1725631866094,-500.0,0.00019726,2]
[337365875,1725631866103,-500.0,0.00019726,2]
[337365876,1725631866112,-500.0,0.00019726,2]
[337365877,1725631866121,-500.0,0.00019726,2]
[337365878,1725631866130,-500.0,0.00019726,2]
[337365879,1725631866138,-500.0,0.00019726,2]
[337365880,1725631866147,-500.0,0.00019726,2]
[337365881,1725631866156,-500.0,0.00019726,2]
[337365882,1725631866165,-1438.2,0.00019726,2]
[337365883,1725631866175,-500.0,0.00019726,2]
[337365884,1725631866183,-500.0,0.00019726,2]
[337365885,1725631866193,-500.0,0.00019726,2]
[337365886,1725631866202,-500.0,0.00019726,2]
[337365887,1725631866211,-500.0,0.00019726,2]
[337365888,1725631866221,-564.71,0.00019726,2]
[337365889,1725631866230,-500.0,0.00019726,2]
[337365890,1725631866239,-550.92727771,0.00019726,2]
[337365891,1725631866248,-500.0,0.00019726,2]
[337365892,1725631866257,-1150.94,0.00019726,2]
[337365893,1725631866266,-500.0,0.00019726,2]
[337365894,1725631866275,-500.0,0.00019726,2]
[337365895,1725631866284,-500.0,0.00019726,2]
[337365896,1725631866293,-500.0,0.00019726,2]
[337365897,1725631866308,-500.0,0.00019726,2]
[337365898,1725631866317,-500.0,0.00019726,2]
[337365899,1725631866326,-500.0,0.00019726,2]
[337365900,1725631866338,-500.0,0.00019726,2]
[337365901,1725631866349,-1637.9,0.00019726,2]
[337365902,1725631866359,-3128.92,0.00019726,2]
[337365903,1725631866369,-296.33697978,0.00019726,2]
[337365904,1725631866378,-500.0,0.00019726,2]
[337365905,1725631866387,-645.59,0.00019726,2]
[337365906,1725631866397,-500.0,0.00019726,2]
[337365907,1725631866406,-500.0,0.00019726,2]
[337365908,1725631866416,-500.0,0.00019726,2]
[337365909,1725631866426,-500.0,0.00019726,2]
[337365910,1725631866436,-549.21,0.00019726,2]
[337365911,1725631866446,-500.0,0.00019726,2]
[337365912,1725631866455,-1354.63,0.00019726,2]
[337365913,1725631866466,-500.0,0.00019726,2]
[337365914,1725631866475,-588.01,0.00019726,2]
[337365915,1725631866484,-379.46371766,0.00019726,2]
[337365916,1725631866493,-500.0,0.00019726,2]
[337365917,1725631866503,-500.0,0.00019726,2]
[337365918,1725631866512,-500.0,0.00019726,2]
[337365919,1725631866523,-500.0,0.00019726,2]
[337365920,1725631866533,-500.0,0.00019726,2]
[337365921,1725631866544,-500.0,0.00019726,2]
[337365922,1725631866559,-500.0,0.00019726,2]
[337365923,1725631866569,-500.0,0.00019726,2]
[337365924,1725631866580,-696.17,0.00019726,2]
[337365925,1725631866589,-500.0,0.00019726,2]
[337365926,1725631866600,-500.0,0.00019726,2]
[337365927,1725631866609,-500.0,0.00019726,2]
[337365928,1725631866618,-2435.34,0.00019726,2]
[337365929,1725631866628,-500.0,0.00019726,2]
[337365930,1725631866637,-739.29,0.00019726,2]
[337365931,1725631866648,-500.0,0.00019726,2]
[337365932,1725631866659,-500.0,0.00019726,2]
[337365933,1725631866668,-712.06,0.00019726,2]
[337365934,1725631866677,-500.0,0.00019726,2]
[337365935,1725631866686,-500.0,0.00019726,2]
[337365936,1725631866695,-1437.93,0.00019726,2]
[337365937,1725631866705,-500.0,0.00019726,2]
[337365938,1725631866716,-500.0,0.00019726,2]
[337365939,1725631866726,-500.0,0.00019726,2]
[337365940,1725631866736,-1254.48,0.00019726,2]
[337365941,1725631866745,-500.0,0.00019726,2]
[337365942,1725631866754,-285.9983546,0.00019726,2]
[337365943,1725631866763,-500.0,0.00019726,2]
[337365944,1725631866772,-500.0,0.00019726,2]
[337365945,1725631866781,-500.0,0.00019726,2]
[337365946,1725631866790,-547.87,0.00019726,2]
[337365947,1725631866801,-500.0,0.00019726,2]
[337365948,1725631866810,-500.0,0.00019726,2]
[337365949,1725631866819,-1992.59,0.00019726,2]
[337365950,1725631866829,-579.46,0.00019726,2]
[337365951,1725631866838,-2436.65,0.00019726,2]
[337365952,1725631866847,-500.0,0.00019726,2]
[337365953,1725631866856,-500.0,0.00019726,2]
[337365954,1725631866865,-500.0,0.00019726,2]
[337365955,1725631866874,-854.61,0.00019726,2]
[337365956,1725631866883,-500.0,0.00019726,2]
[337365957,1725631866892,-1053.85,0.00019726,2]
[337365958,1725631866902,-500.0,0.00019726,2]
[337365959,1725631866913,-500.0,0.00019726,2]
[337365960,1725631866922,-619.13,0.00019726,2]
[337365961,1725631866932,-500.0,0.00019726,2]
[337365962,1725631866941,-500.0,0.00019726,2]
[337365963,1725631866951,-2391.77,0.00019726,2]
[337365964,1725631866960,-1773.27,0.00019726,2]
[337365965,1725631866970,-500.0,0.00019726,2]
[337365966,1725631866979,-500.0,0.00019726,2]
[337365967,1725631866989,-1617.1,0.00019726,2]
[337365968,1725631866999,-985.06,0.00019726,2]
[337365969,1725631867008,-500.0,0.00019726,2]
[337365970,1725631867019,-1012.85,0.00019726,2]
[337365971,1725631867031,-500.0,0.00019726,2]
[337365972,1725631867041,-1083.74,0.00019726,2]
[337365973,1725631867055,-500.0,0.00019726,2]
[337365974,1725631867065,-500.0,0.00019726,2]
[337365975,1725631867074,-500.0,0.00019726,2]
[337365976,1725631867083,-500.0,0.00019726,2]
[337365977,1725631867093,-993.62,0.00019726,2]
[337365978,1725631867103,-500.0,0.00019726,2]
[337365979,1725631867113,-500.0,0.00019726,2]
[337365980,1725631867122,-500.0,0.00019726,2]
[337365981,1725631867132,-1448.57,0.00019726,2]
[337365982,1725631867144,-979.52,0.00019726,2]
[337365983,1725631867154,-500.0,0.00019726,2]
[337365984,1725631867164,-500.0,0.00019726,2]
[337365985,1725631867174,-500.0,0.00019726,2]
[337365986,1725631867183,-3583.08,0.00019726,2]
[337365987,1725631867192,-2065.07,0.00019726,2]
[337365988,1725631867202,-500.0,0.00019726,2]
[337365989,1725631867211,-500.0,0.00019726,2]
[337365990,1725631867221,-196.48896559,0.00019726,2]
[337365991,1725631867231,-500.0,0.00019726,2]
[337365992,1725631867242,-765.11,0.00019726,2]
[337365993,1725631867253,-500.0,0.00019726,2]
[337365994,1725631867262,-516.16018954,0.00019726,2]
[337365995,1725631867271,-500.0,0.00019726,2]
[337365996,1725631867281,-500.0,0.00019726,2]
[337365997,1725631867291,-500.0,0.00019726,2]
[337365998,1725631867305,-527.05782624,0.00019726,2]
[337365999,1725631867314,-2187.02,0.00019726,2]
[337366000,1725631867324,-548.62,0.00019726,2]
[337366001,1725631867334,-500.0,0.00019726,2]
[337366002,1725631867344,-600.2,0.00019726,2]
[337366003,1725631867355,-915.11,0.00019726,2]
[337366004,1725631867365,-526.84,0.00019726,2]
[337366005,1725631867375,-583.77,0.00019726,2]
[337366006,1725631867385,-500.0,0.00019726,2]
[337366007,1725631867396,-500.0,0.00019726,2]
[337366008,1725631867406,-500.0,0.00019726,2]
[337366009,1725631867416,-2820.38,0.00019726,2]
[337366010,1725631867426,-3216.65,0.00019726,2]
[337366011,1725631867435,-500.0,0.00019726,2]
[337366012,1725631867445,-3068.16,0.00019726,2]
[337366013,1725631867455,-500.0,0.00019726,2]
[337366014,1725631867466,-500.0,0.00019726,2]
[337366015,1725631867476,-500.0,0.00019726,2]
[337366016,1725631867485,-500.0,0.00019726,2]
[337366017,1725631867631,-500.0,0.00019726,2]
[337366018,1725631867654,-191.62836598,0.00019726,2]
[337366019,1725631867664,-500.0,0.00019726,2]
[337366020,1725631867674,-500.0,0.00019726,2]
[337366021,1725631867684,-500.0,0.00019726,2]
[337366022,1725631867693,-2164.36,0.00019726,2]
[337366023,1725631867702,-500.0,0.00019726,2]
[337366024,1725631867712,-585.28,0.00019726,2]
[337366025,1725631867722,-500.0,0.00019726,2]
[337366026,1725631867733,-500.0,0.00019726,2]
[337366027,1725631867743,-2677.65,0.00019726,2]
[337366028,1725631867755,-500.0,0.00019726,2]
[337366029,1725631867764,-2209.05,0.00019726,2]
[337366030,1725631867773,-500.38,0.00019726,2]
[337366031,1725631867783,-500.0,0.00019726,2]
[337366032,1725631867793,-2074.26,0.00019726,2]
[337366033,1725631867804,-500.0,0.00019726,2]
[337366034,1725631867814,-509.23242962,0.00019726,2]
[337366035,1725631867824,-500.0,0.00019726,2]
[337366036,1725631867833,-500.0,0.00019726,2]
[337366037,1725631867844,-3954.89,0.00019726,2]
[337366038,1725631867853,-500.0,0.00019726,2]
[337366039,1725631867863,-500.0,0.00019726,2]
[337366040,1725631867873,-500.0,0.00019726,2]
[337366041,1725631867882,-518.82924043,0.00019726,2]
[337366042,1725631867892,-1651.0,0.00019726,2]
[337366043,1725631867902,-116314.01,0.00019726,2]
[337366044,1725631867913,-500.0,0.00019726,2]
[337366045,1725631867926,-500.0,0.00019726,2]
[337366046,1725631867937,-532.89445454,0.00019726,2]
[337366047,1725631867946,-500.0,0.00019726,2]
[337366048,1725631867956,-500.0,0.00019726,2]
[337366049,1725631867966,-516.58339722,0.00019726,2]
[337366050,1725631867976,-9306.23,0.00019726,2]
[337366051,1725631867986,-500.0,0.00019726,2]
[337366052,1725631867996,-1523.95,0.00019726,2]
[337366053,1725631868006,-500.0,0.00019726,2]
[337366054,1725631868017,-1087.16,0.00019726,2]
[337366055,1725631868026,-500.0,0.00019726,2]
[337366056,1725631868036,-541.23,0.00019726,2]
[337366057,1725631868046,-3472.66,0.00019726,2]
[337366058,1725631868060,-500.0,0.00019726,2]
[337366059,1725631868069,-500.0,0.00019726,2]
[337366060,1725631868079,-500.0,0.00019726,2]
[337366061,1725631868088,-500.0,0.00019726,2]
[337366062,1725631868096,-500.0,0.00019726,2]
[337366063,1725631868106,-1236.52,0.00019726,2]
[337366064,1725631868115,-1611.2,0.00019726,2]
[337366065,1725631868125,-500.0,0.00019726,2]
[337366066,1725631868135,-500.0,0.00019726,2]
[337366067,1725631868145,-2055.17,0.00019726,2]
[337366068,1725631868156,-500.0,0.00019726,2]
[337366069,1725631868165,-1839.42,0.00019726,2]
[337366070,1725631868175,-500.0,0.00019726,2]
[337366071,1725631868185,-500.0,0.00019726,2]
[337366072,1725631868195,-543.94938184,0.00019726,2]
[337366073,1725631868204,-500.0,0.00019726,2]
[337366074,1725631868214,-500.0,0.00019726,2]
[337366075,1725631868225,-500.0,0.00019726,2]
[337366076,1725631868234,-500.0,0.00019726,2]
[337366077,1725631868244,-622.12,0.00019726,2]
[337366078,1725631868255,-2171.42,0.00019726,2]
[337366079,1725631868264,-745.9,0.00019726,2]
[337366080,1725631868274,-500.0,0.00019726,2]
[337366081,1725631868284,-1274.22,0.00019726,2]
[337366082,1725631868293,-500.0,0.00019726,2]
[337366083,1725631868306,-611.22,0.00019726,2]
[337366084,1725631868316,-1057.51,0.00019726,2]
[337366085,1725631868325,-845.53,0.00019726,2]
[337366086,1725631868335,-500.0,0.00019726,2]
[337366087,1725631868345,-500.0,0.00019726,2]
[337366088,1725631868355,-3522.6,0.00019726,2]
[337366089,1725631868365,-530.81,0.00019726,2]
[337366090,1725631868375,-500.0,0.00019726,2]
[337366091,1725631868384,-500.0,0.00019726,2]
[337366092,1725631868394,-3286.15,0.00019726,2]
[337366093,1725631868403,-2863.53,0.00019726,2]
[337366094,1725631868414,-500.0,0.00019726,2]
[337366095,1725631868423,-651.92,0.00019726,2]
[337366096,1725631868433,-2848.96,0.00019726,2]
[337366097,1725631868443,-500.0,0.00019726,2]
[337366098,1725631868453,-2433.94,0.00019726,2]
[337366099,1725631868463,-500.0,0.00019726,2]
[337366100,1725631868473,-2928.81,0.00019726,2]
[337366101,1725631868482,-500.0,0.00019726,2]
[337366102,1725631868492,-654.7,0.00019726,2]
[337366103,1725631868501,-2387.03,0.00019726,2]
[337366104,1725631868511,-500.0,0.00019726,2]
[337366105,1725631868522,-1660.58,0.00019726,2]
[337366106,1725631868535,-500.0,0.00019726,2]
[337366107,1725631868546,-3345.77,0.00019726,2]
[337366108,1725631868562,-500.0,0.00019726,2]
[337366109,1725631868572,-500.0,0.00019726,2]
[337366110,1725631868582,-3264.33,0.00019726,2]
[337366111,1725631868591,-500.0,0.00019726,2]
[337366112,1725631868602,-500.0,0.00019726,2]
[337366113,1725631868612,-500.0,0.00019726,2]
[337366114,1725631868621,-1608.24,0.00019726,2]
[337366115,1725631868631,-500.0,0.00019726,2]
[337366116,1725631868641,-1081.18,0.00019726,2]
[337366117,1725631868651,-587.81,0.00019726,2]
[337366118,1725631868660,-408.19881569,0.00019726,2]
[337366119,1725631868670,-1370.51,0.00019726,2]
[337366120,1725631868680,-656.69,0.00019726,2]
[337366121,1725631868690,-500.0,0.00019726,2]
[337366122,1725631868700,-1055.34,0.00019726,2]
[337366123,1725631868710,-500.0,0.00019726,2]
[337366124,1725631868720,-1952.4,0.00019726,2]
[337366125,1725631868731,-3518.29,0.00019726,2]
[337366126,1725631868741,-345.39941174,0.00019726,2]
[337366127,1725631868751,-500.0,0.00019726,2]
[337366128,1725631868761,-2418.27,0.00019726,2]
[337366129,1725631868771,-500.0,0.00019726,2]
[337366130,1725631868781,-6016.44,0.00019726,2]
[337366131,1725631868791,-500.0,0.00019726,2]
[337366132,1725631868801,-500.0,0.00019726,2]
[337366133,1725631868819,-500.0,0.00019726,2]
[337366134,1725631868829,-572.83561982,0.00019726,2]
[337366135,1725631868839,-1000.0,0.00019726,2]
[337366136,1725631868848,-500.0,0.00019726,2]
[337366137,1725631868858,-500.0,0.00019726,2]
[337366138,1725631868868,-837.34,0.00019726,2]
[337366139,1725631868877,-500.0,0.00019726,2]
[337366140,1725631868887,-862.38,0.00019726,2]
[337366141,1725631868897,-500.0,0.00019726,2]
[337366142,1725631868906,-1887.14,0.00019726,2]
[337366143,1725631868916,-260.08043509,0.00019726,2]
[337366144,1725631868926,-500.0,0.00019726,2]
[337366145,1725631868936,-2273.13,0.00019726,2]
[337366146,1725631868946,-1963.85,0.00019726,2]
[337366147,1725631868956,-500.0,0.00019726,2]
[337366148,1725631868967,-3757.23,0.00019726,2]
[337366149,1725631868977,-500.0,0.00019726,2]
[337366150,1725631868986,-500.0,0.00019726,2]
[337366151,1725631868996,-500.0,0.00019726,2]
[337366152,1725631869006,-500.0,0.00019726,2]
[337366153,1725631869015,-500.0,0.00019726,2]
[337366154,1725631869026,-500.0,0.00019726,2]
[337366155,1725631869037,-500.0,0.00019726,2]
[337366156,1725631869047,-1009.77,0.00019726,2]
[337366157,1725631869063,-502.94461312,0.00019726,2]
[337366158,1725631869073,-536.90233733,0.00019726,2]
[337366159,1725631869083,-1475.95,0.00019726,2]
[337366160,1725631869092,-404.96399183,0.00019726,2]
[337366161,1725631869102,-669.11,0.00019726,2]
[337366162,1725631869112,-500.0,0.00019726,2]
[337366163,1725631869122,-3550.63,0.00019726,2]
[337366164,1725631869132,-1203.77,0.00019726,2]
[337366165,1725631869142,-605.36588413,0.00019726,2]
[337366166,1725631869152,-500.0,0.00019726,2]
[337366167,1725631869161,-1123.46,0.00019726,2]
[337366168,1725631869170,-1848.36,0.00019726,2]
[337366169,1725631869180,-3384.88,0.00019726,2]
[337366170,1725631869191,-500.0,0.00019726,2]
[337366171,1725631869202,-710.64,0.00019726,2]
[337366172,1725631869212,-1535.68,0.00019726,2]
[337366173,1725631869222,-1036.44,0.00019726,2]
[337366174,1725631869231,-603.27,0.00019726,2]
[337366175,1725631869242,-500.0,0.00019726,2]
[337366176,1725631869252,-500.0,0.00019726,2]
[337366177,1725631869262,-3839.93,0.00019726,2]
[337366178,1725631869272,-509.6097839,0.00019726,2]
[337366179,1725631869281,-500.0,0.00019726,2]
[337366180,1725631869291,-428.58,0.00019726,2]
[337366181,1725631869300,-3368.52,0.00019726,2]
[337366182,1725631869317,-500.0,0.00019726,2]
[337366183,1725631869329,-547.17,0.00019726,2]
[337366184,1725631869341,-1934.78,0.00019726,2]
[337366185,1725631869351,-500.0,0.00019726,2]
[337366186,1725631869362,-500.0,0.00019726,2]
[337366187,1725631869373,-500.0,0.00019726,2]
[337366188,1725631869384,-500.0,0.00019726,2]
[337366189,1725631869394,-1894.75,0.00019726,2]
[337366190,1725631869403,-912.1,0.00019726,2]
[337366191,1725631869413,-500.0,0.00019726,2]
[337366192,1725631869424,-716.25,0.00019726,2]
[337366193,1725631869434,-500.0,0.00019726,2]
[337366194,1725631869446,-500.0,0.00019726,2]
[337366195,1725631869458,-3216.8,0.00019726,2]
[337366196,1725631869469,-500.0,0.00019726,2]
[337366197,1725631869479,-1447.97,0.00019726,2]
[337366198,1725631869488,-1236.59,0.00019726,2]
[337366199,1725631869498,-3894.99,0.00019726,2]
[337366200,1725631869507,-833.5,0.00019726,2]
[337366201,1725631869517,-500.0,0.00019726,2]
[337366202,1725631869530,-500.0,0.00019726,2]
[337366203,1725631869540,-1879.17,0.00019726,2]
[337366204,1725631869549,-1187.25,0.00019726,2]
[337366205,1725631869566,-500.0,0.00019726,2]
[337366206,1725631869575,-510.23,0.00019726,2]
[337366207,1725631869585,-725.44,0.00019726,2]
[337366208,1725631869595,-2343.94,0.00019726,2]
[337366209,1725631869606,-817.13,0.00019726,2]
[337366210,1725631869616,-2268.84,0.00019726,2]
[337366211,1725631869626,-420.0,0.00019755,2]
[337366212,1725631869636,-2528.823517,0.00019863,2]
[337366213,1725631869646,-420.0,0.00019918,2]
[337366214,1725631869656,-150.0,0.00019973,2]
[337366215,1725631869666,-24581.01737412,0.0001999,2]
[337366216,1725631869676,-1000.0,0.0002,20]
[337366217,1725631869687,-510.000001,0.0002,2]
[337366218,1725631869700,-508.0,0.0002,2]
[337366219,1725631869710,-184.0,0.0002,2]
[337366220,1725631869721,-507.0,0.0002,2]
[337366221,1725631869733,-99511.56996541,0.0002,2]
[337366222,1725631869743,-975.88,0.0002,2]
[337366223,1725631869754,-153.66016664,0.0002,2]
[337366224,1725631869764,-500.0,0.0002,2]
[337366225,1725631869773,-500.0,0.0002,2]
[337366226,1725631869783,-500.0,0.0002,2]
[337366227,1725631869793,-500.0,0.0002,2]
[337366228,1725631869807,-502.29,0.0002,2]
[337366229,1725631869816,-500.0,0.0002,2]
[337366230,1725631869825,-500.0,0.0002,2]
[337366231,1725631869835,-500.0,0.0002,2]
[337366232,1725631869844,-500.0,0.0002,2]
[337366233,1725631869854,-500.0,0.0002,2]
[337366234,1725631869863,-500.0,0.0002,2]
[337366235,1725631869872,-581.03157695,0.0002,2]
[337366236,1725631869882,-500.0,0.0002,2]
[337366237,1725631869893,-529.75618824,0.0002,2]
[337366238,1725631869903,-500.0,0.0002,2]
[337366239,1725631869914,-500.0,0.0002,2]
[337366240,1725631869925,-500.0,0.0002,2]
[337366241,1725631869934,-500.0,0.0002,2]
[337366242,1725631869944,-185.02777136,0.0002,2]
[337366243,1725631869955,-500.0,0.0002,2]
[337366244,1725631869965,-500.0,0.0002,2]
[337366245,1725631869974,-219.50050075,0.0002,2]
[337366246,1725631869984,-500.0,0.0002,2]
[337366247,1725631869993,-500.0,0.0002,2]
[337366248,1725631870003,-500.0,0.0002,2]
[337366249,1725631870013,-532.12,0.0002,2]
[337366250,1725631870023,-501.56,0.0002,2]
[337366251,1725631870034,-500.0,0.0002,2]
[337366252,1725631870045,-500.0,0.0002,2]
[337366253,1725631870059,-500.0,0.0002,2]
[337366254,1725631870069,-667.2,0.0002,2]
[337366255,1725631870078,-500.0,0.0002,2]
[337366256,1725631870088,-500.0,0.0002,2]
[337366257,1725631870098,-848.57,0.0002,2]
[337366258,1725631870107,-500.0,0.0002,2]
[337366259,1725631870117,-500.0,0.0002,2]
[337366260,1725631870126,-500.0,0.0002,2]
[337366261,1725631870136,-500.0,0.0002,2]
[337366262,1725631870145,-500.0,0.0002,2]
[337366263,1725631870155,-500.0,0.0002,2]
[337366264,1725631870164,-525.28322269,0.0002,2]
[337366265,1725631870173,-500.0,0.0002,2]
[337366266,1725631870183,-301.3133663,0.0002,2]
[337366267,1725631870331,-500.0,0.0002,2]
[337366268,1725631870341,-565.06633155,0.0002,2]
[337366269,1725631870351,-500.0,0.0002,2]
[337366270,1725631870360,-500.0,0.0002,2]
[337366271,1725631870370,-449.95743406,0.0002,2]
[337366272,1725631870380,-500.0,0.0002,2]
[337366273,1725631870389,-500.0,0.0002,2]
[337366274,1725631870399,-500.0,0.0002,2]
[337366275,1725631870408,-500.0,0.0002,2]
[337366276,1725631870418,-500.0,0.0002,2]
[337366277,1725631870427,-500.0,0.0002,2]
[337366278,1725631870436,-676.68,0.0002,2]
[337366279,1725631870446,-500.0,0.0002,2]
[337366280,1725631870456,-641.56604778,0.0002,2]
[337366281,1725631870464,-500.0,0.0002,2]
[337366282,1725631870475,-500.0,0.0002,2]
[337366283,1725631870484,-500.0,0.0002,2]
[337366284,1725631870493,-636.07,0.0002,2]
[337366285,1725631870503,-500.0,0.0002,2]
[337366286,1725631870513,-500.0,0.0002,2]
[337366287,1725631870526,-500.0,0.0002,2]
[337366288,1725631870538,-500.0,0.0002,2]
[337366289,1725631870549,-500.0,0.0002,2]
[337366290,1725631870564,-500.0,0.0002,2]
[337366291,1725631870574,-500.0,0.0002,2]
[337366292,1725631870584,-500.0,0.0002,2]
[337366293,1725631870593,-500.0,0.0002,2]
[337366294,1725631870604,-500.0,0.0002,2]
[337366295,1725631870613,-718.23,0.0002,2]
[337366296,1725631870623,-500.0,0.0002,2]
[337366297,1725631870633,-500.0,0.0002,2]
[337366298,1725631870642,-500.0,0.0002,2]
[337366299,1725631870651,-500.0,0.0002,2]